fUSD/lending_fUSD_20250823
["ID","MTS","AMOUNT","RATE_DAILY","PERIOD"]
[380959269,1755912771618,-1167.85,0.00016712,2]
[380959270,1755912771627,-334.047536,0.00016712,2]
[380959271,1755912771637,-402.87,0.00016712,2]
[380959272,1755912771646,-668.01,0.00016712,2]
[380959273,1755912771655,-911.43,0.00016712,2]
[380959274,1755912771665,-400.0,0.00016712,2]
[380959275,1755912771674,-440.73,0.00016712,2]
[380959276,1755912771684,-400.0,0.00016712,2]
[380959277,1755912771694,-631.42,0.00016712,2]
[380959278,1755912771703,-931.59,0.00016712,2]
[380959279,1755912771713,-400.0,0.00016712,2]
[380959280,1755912771723,-585.39,0.00016712,2]
[380959281,1755912771732,-400.0,0.00016712,2]
[380959282,1755912771741,-821.68,0.00016712,2]
[380959283,1755912771751,-613.21,0.00016712,2]
[380959284,1755912771761,-464.46,0.00016712,2]
[380959285,1755912771771,-980.7,0.00016712,2]
[380959286,1755912771782,-408.02,0.00016712,2]
[380959287,1755912771792,-400.0,0.00016712,2]
[380959288,1755912771802,-627.98,0.00016712,2]
[380959289,1755912771812,-400.0,0.00016712,2]
[380959290,1755912771822,-840.52,0.00016712,2]
[380959291,1755912771832,-190.42,0.00016712,2]
[380959292,1755912771842,-807.10536252,0.00016727,2]
[380959293,1755912771852,-2500.0,0.00016727,2]
[380959294,1755912771861,-1244.34180567,0.00016727,2]
[380959295,1755912771871,-217.32307645,0.00016727,2]
[380959296,1755912771880,-456.58358577,0.00016733,2]
[380959297,1755912771890,-1000.0,0.00016736,2]
[380959298,1755912771899,-150.0,0.00016741,2]
[380959299,1755912771909,-150.0,0.00016741,2]
[380959300,1755912771918,-150.0,0.00016741,2]
[380959301,1755912771927,-799.08,0.00016745,2]
[380959302,1755912771937,-959.06014817,0.00016757,2]
[380959303,1755912771947,-1000.0,0.00016757,2]
[380959304,1755912771956,-1000.0,0.00016757,2]
[380959305,1755912771965,-1000.0,0.00016757,2]
[380959306,1755912771975,-150.0,0.00016763,2]
[380959307,1755912771984,-1000.0,0.00016771,2]
[380959308,1755912771994,-1000.0,0.00016773,2]
[380959309,1755912772004,-3268.64805808,0.00016795,2]
[380959310,1755912772014,-1000.0,0.00016796,2]
[380959311,1755912772024,-158.0,0.000168,5]
[380959312,1755912772033,-158.0,0.000168,6]
[380959313,1755912772043,-219.92223109,0.00016801,2]
[380959314,1755912772052,-1000.0,0.00016855,2]
[380959315,1755912772062,-386.81416894,0.00016885,2]
[380959316,1755912772071,-150.0,0.00016885,2]
[380959317,1755912772081,-2400.0,0.0001689,2]
[380959318,1755912772090,-913.42,0.00016892,2]
[380959319,1755912772100,-1294.32653009,0.000169,2]
[380959320,1755912772109,-1000.0,0.00016905,2]
[380959321,1755912772118,-1000.0,0.00016907,2]
[380959322,1755912772127,-1000.0,0.00016907,2]
[380959323,1755912772137,-1000.0,0.00016907,2]
[380959324,1755912772147,-1000.0,0.00016907,2]
[380959325,1755912772157,-1000.0,0.00016907,2]
[380959326,1755912772167,-467.63424817,0.00016907,2]
[380959327,1755912772177,-1000.0,0.00016907,2]
[380959328,1755912772187,-590.65746038,0.00016907,2]
[380959329,1755912772196,-1000.0,0.00016915,2]
[380959330,1755912772206,-150.0,0.0001692,2]
[380959331,1755912772216,-150.72097129,0.00016937,2]
[380959332,1755912772225,-549.67,0.00016968,2]
[380959333,1755912772235,-1000.0,0.00016974,2]
[380959334,1755912772244,-300.0,0.00016985,2]
[380959335,1755912772255,-300.0,0.00016985,2]
[380959336,1755912772264,-300.0,0.00016985,2]
[380959337,1755912772273,-300.0,0.00016985,2]
[380959338,1755912772283,-300.0,0.00016985,2]
[380959339,1755912772293,-300.0,0.00016985,2]
[380959340,1755912772302,-300.0,0.00016985,2]
[380959341,1755912772312,-300.0,0.00016985,2]
[380959342,1755912772321,-300.0,0.00016985,2]
[380959343,1755912772330,-300.0,0.00016985,2]
[380959344,1755912772340,-300.0,0.00016985,2]
[380959345,1755912772349,-305.40107331,0.00016985,2]
[380959346,1755912772358,-1068.91212852,0.00016986,2]
[380959347,1755912772368,-733.0,0.00016986,2]
[380959348,1755912772378,-500.0,0.00016986,2]
[380959349,1755912772388,-1367.0,0.00016986,2]
[380959350,1755912772399,-500.0,0.00016986,2]
[380959351,1755912772410,-300.0,0.00016986,2]
[380959352,1755912772420,-500.0,0.00016986,2]
[380959353,1755912772429,-500.0,0.00016986,2]
[380959354,1755912772439,-500.0,0.00016986,2]
[380959355,1755912772449,-500.0,0.00016986,2]
[380959356,1755912772459,-2066.0,0.00016986,2]
[380959357,1755912772468,-500.0,0.00016986,2]
[380959358,1755912772478,-500.0,0.00016986,2]
[380959359,1755912772488,-1471.92,0.00016986,2]
[380959360,1755912772497,-404.24,0.00016986,2]
[380959361,1755912772506,-400.0,0.00016986,2]
[380959362,1755912772515,-400.0,0.00016986,2]
[380959363,1755912772525,-957.1,0.00016986,2]
[380959364,1755912772534,-500.5,0.00016986,2]
[380959365,1755912772543,-400.0,0.00016986,2]
[380959366,1755912772553,-630.13,0.00016986,2]
[380959367,1755912772562,-484.29,0.00016986,2]
[380959368,1755912772571,-691.2,0.00016986,2]
[380959369,1755912772580,-400.0,0.00016986,2]
[380959370,1755912772590,-564.0,0.00016986,2]
[380959371,1755912772599,-922.66,0.00016986,2]
[380959372,1755912772608,-1309.75,0.00016986,2]
[380959373,1755912772618,-380.67849888,0.00016986,2]
[380959374,1755912772627,-400.0,0.00016986,2]
[380959375,1755912772636,-410.64,0.00016986,2]
[380959376,1755912772646,-400.0,0.00016986,2]
[380959377,1755912772655,-400.0,0.00016986,2]
[380959378,1755912772665,-400.0,0.00016986,2]
[380959379,1755912772674,-400.0,0.00016986,2]
[380959380,1755912772684,-814.35,0.00016986,2]
[380959381,1755912772693,-703.72,0.00016986,2]
[380959382,1755912772703,-400.0,0.00016986,2]
[380959383,1755912772712,-400.0,0.00016986,2]
[380959384,1755912772721,-400.0,0.00016986,2]
[380959385,1755912772731,-400.0,0.00016986,2]
[380959386,1755912772740,-416.84,0.00016986,2]
[380959387,1755912772750,-552.81,0.00016986,2]
[380959388,1755912772760,-565.22,0.00016986,2]
[380959389,1755912772769,-433.4008659,0.00016986,2]
[380959390,1755912772779,-457.37,0.00016986,2]
[380959391,1755912772788,-400.0,0.00016986,2]
[380959392,1755912772797,-400.0,0.00016986,2]
[380959393,1755912772807,-454.18,0.00016986,2]
[380959394,1755912772817,-408.41,0.00016986,2]
[380959395,1755912772826,-429.23,0.00016986,2]
[380959396,1755912772836,-400.0,0.00016986,2]
[380959397,1755912772846,-400.0,0.00016986,2]
[380959398,1755912772856,-400.0,0.00016986,2]
[380959399,1755912772865,-582.37,0.00016986,2]
[380959400,1755912772875,-400.0,0.00016986,2]
[380959401,1755912772885,-400.0,0.00016986,2]
[380959402,1755912772896,-400.0,0.00016986,2]
[380959403,1755912772905,-400.0,0.00016986,2]
[380959404,1755912772916,-759.88,0.00016986,2]
[380959405,1755912772926,-400.0,0.00016986,2]
[380959406,1755912772936,-591.39,0.00016986,2]
[380959407,1755912772946,-413.97,0.00016986,2]
[380959408,1755912772955,-649.74,0.00016986,2]
[380959409,1755912772965,-446.38,0.00016986,2]
[380959410,1755912772974,-506.47,0.00016986,2]
[380959411,1755912772984,-715.02,0.00016986,2]
[380959412,1755912772994,-400.0,0.00016986,2]
[380959413,1755912773004,-537.25,0.00016986,2]
[380959414,1755912773014,-400.0,0.00016986,2]
[380959415,1755912773024,-512.45,0.00016986,2]
[380959416,1755912773033,-527.41,0.00016986,2]
[380959417,1755912773043,-400.0,0.00016986,2]
[380959418,1755912773052,-521.1,0.00016986,2]
[380959419,1755912773062,-400.0,0.00016986,2]
[380959420,1755912773071,-446.92,0.00016986,2]
[380959421,1755912773081,-449.44,0.00016986,2]
[380959422,1755912773090,-400.0,0.00016986,2]
[380959423,1755912773099,-675.1,0.00016986,2]
[380959424,1755912773109,-400.0,0.00016986,2]
[380959425,1755912773118,-400.0,0.00016986,2]
[380959426,1755912773128,-609.3,0.00016986,2]
[380959427,1755912773137,-654.03,0.00016986,2]
[380959428,1755912773147,-400.0,0.00016986,2]
[380959429,1755912773158,-400.0,0.00016986,2]
[380959430,1755912773169,-661.96,0.00016986,2]
[380959431,1755912773178,-568.98,0.00016986,2]
[380959432,1755912773189,-400.0,0.00016986,2]
[380959433,1755912773198,-400.0,0.00016986,2]
[380959434,1755912773208,-220.61925634,0.00016986,2]
[380959435,1755912773218,-709.86,0.00016986,2]
[380959436,1755912773227,-400.0,0.00016986,2]
[380959437,1755912773237,-812.84,0.00016986,2]
[380959438,1755912773246,-437.4,0.00016986,2]
[380959439,1755912773255,-586.38,0.00016986,2]
[380959440,1755912773265,-442.27,0.00016986,2]
[380959441,1755912773275,-562.61,0.00016986,2]
[380959442,1755912773284,-400.0,0.00016986,2]
[380959443,1755912773293,-400.0,0.00016986,2]
[380959444,1755912773303,-845.65,0.00016986,2]
[380959445,1755912773312,-441.24,0.00016986,2]
[380959446,1755912773321,-529.98,0.00016986,2]
[380959447,1755912773331,-400.0,0.00016986,2]
[380959448,1755912773340,-400.0,0.00016986,2]
[380959449,1755912773351,-570.39,0.00016986,2]
[380959450,1755912773361,-400.0,0.00016986,2]
[380959451,1755912773372,-421.77,0.00016986,2]
[380959452,1755912773382,-400.0,0.00016986,2]
[380959453,1755912773392,-400.0,0.00016986,2]
[380959454,1755912773405,-400.0,0.00016986,2]
[380959455,1755912773415,-400.0,0.00016986,2]
[380959456,1755912773424,-464.48,0.00016986,2]
[380959457,1755912773435,-415.36,0.00016986,2]
[380959458,1755912773444,-530.98,0.00016986,2]
[380959459,1755912773453,-400.0,0.00016986,2]
[380959460,1755912773463,-512.43,0.00016986,2]
[380959461,1755912773472,-516.79,0.00016986,2]
[380959462,1755912773482,-400.0,0.00016986,2]
[380959463,1755912773491,-400.0,0.00016986,2]
[380959464,1755912773501,-400.0,0.00016986,2]
[380959465,1755912773513,-400.0,0.00016986,2]
[380959466,1755912773522,-409.44,0.00016986,2]
[380959467,1755912773531,-400.0,0.00016986,2]
[380959468,1755912773541,-400.0,0.00016986,2]
[380959469,1755912773550,-499.57,0.00016986,2]
[380959470,1755912773559,-577.94,0.00016986,2]
[380959471,1755912773568,-400.0,0.00016986,2]
[380959472,1755912773578,-400.0,0.00016986,2]
[380959473,1755912773587,-476.9,0.00016986,2]
[380959474,1755912773596,-637.7,0.00016986,2]
[380959475,1755912773605,-423.83,0.00016986,2]
[380959476,1755912773614,-400.0,0.00016986,2]
[380959477,1755912773623,-459.29,0.00016986,2]
[380959478,1755912773633,-873.47,0.00016986,2]
[380959479,1755912773642,-571.62,0.00016986,2]
[380959480,1755912773651,-409.95,0.00016986,2]
[380959481,1755912773661,-1704.41,0.00016986,2]
[380959482,1755912773670,-400.0,0.00016986,2]
[380959483,1755912773679,-549.98,0.00016986,2]
[380959484,1755912773689,-440.31967363,0.00016986,2]
[380959485,1755912773698,-400.0,0.00016986,2]
[380959486,1755912773707,-400.0,0.00016986,2]
[380959487,1755912773716,-531.47,0.00016986,2]
[380959488,1755912773725,-400.0,0.00016986,2]
[380959489,1755912773734,-456.18,0.00016986,2]
[380959490,1755912773743,-400.0,0.00016986,2]
[380959491,1755912773753,-400.0,0.00016986,2]
[380959492,1755912773763,-890.29,0.00016986,2]
[380959493,1755912773773,-400.0,0.00016986,2]
[380959494,1755912773782,-400.0,0.00016986,2]
[380959495,1755912773791,-406.1,0.00016986,2]
[380959496,1755912773801,-421.32,0.00016986,2]
[380959497,1755912773810,-400.0,0.00016986,2]
[380959498,1755912773819,-478.43,0.00016986,2]
[380959499,1755912773829,-400.0,0.00016986,2]
[380959500,1755912773839,-487.04,0.00016986,2]
[380959501,1755912773848,-595.85,0.00016986,2]
[380959502,1755912773858,-510.81,0.00016986,2]
[380959503,1755912773867,-542.43,0.00016986,2]
[380959504,1755912773876,-451.04,0.00016986,2]
[380959505,1755912773887,-400.0,0.00016986,2]
[380959506,1755912773896,-477.02,0.00016986,2]
[380959507,1755912773906,-667.8,0.00016986,2]
[380959508,1755912773915,-400.0,0.00016986,2]
[380959509,1755912773925,-400.0,0.00016986,2]
[380959510,1755912773934,-754.76,0.00016986,2]
[380959511,1755912773943,-400.0,0.00016986,2]
[380959512,1755912773953,-1030.1,0.00016986,2]
[380959513,1755912773963,-510.89,0.00016986,2]
[380959514,1755912773972,-436.99,0.00016986,2]
[380959515,1755912773981,-657.25,0.00016986,2]
[380959516,1755912773991,-400.0,0.00016986,2]
[380959517,1755912774000,-417.45,0.00016986,2]
[380959518,1755912774010,-400.0,0.00016986,2]
[380959519,1755912774134,-400.0,0.00016986,2]
[380959520,1755912774144,-1067.81,0.00016986,2]
[380959521,1755912774154,-400.0,0.00016986,2]
[380959522,1755912774166,-400.0,0.00016986,2]
[380959523,1755912774176,-578.42,0.00016986,2]
[380959524,1755912774186,-786.01,0.00016986,2]
[380959525,1755912774196,-232.86532101,0.00016986,2]
[380959526,1755912774205,-1145.67,0.00016986,2]
[380959527,1755912774215,-624.95,0.00016986,2]
[380959528,1755912774224,-400.0,0.00016986,2]
[380959529,1755912774234,-439.98,0.00016986,2]
[380959530,1755912774243,-400.0,0.00016986,2]
[380959531,1755912774253,-734.24,0.00016986,2]
[380959532,1755912774263,-716.27,0.00016986,2]
[380959533,1755912774273,-400.0,0.00016986,2]
[380959534,1755912774282,-400.0,0.00016986,2]
[380959535,1755912774291,-677.21,0.00016986,2]
[380959536,1755912774301,-189.06,0.00016986,2]
[380959537,1755912774311,-400.0,0.00016986,2]
[380959538,1755912774321,-400.0,0.00016986,2]
[380959539,1755912774331,-503.77,0.00016986,2]
[380959540,1755912774341,-651.98,0.00016986,2]
[380959541,1755912774350,-831.56,0.00016986,2]
[380959542,1755912774359,-742.35,0.00016986,2]
[380959543,1755912774369,-541.87,0.00016986,2]
[380959544,1755912774378,-400.0,0.00016986,2]
[380959545,1755912774388,-400.0,0.00016986,2]
[380959546,1755912774401,-400.0,0.00016986,2]
[380959547,1755912774411,-462.17,0.00016986,2]
[380959548,1755912774421,-400.0,0.00016986,2]
[380959549,1755912774431,-422.39,0.00016986,2]
[380959550,1755912774441,-400.0,0.00016986,2]
[380959551,1755912774450,-400.0,0.00016986,2]
[380959552,1755912774460,-535.7,0.00016986,2]
[380959553,1755912774469,-601.7,0.00016986,2]
[380959554,1755912774480,-598.88,0.00016986,2]
[380959555,1755912774489,-729.0,0.00016986,2]
[380959556,1755912774498,-400.0,0.00016986,2]
[380959557,1755912774508,-400.0,0.00016986,2]
[380959558,1755912774518,-482.06,0.00016986,2]
[380959559,1755912774528,-648.16,0.00016986,2]
[380959560,1755912774537,-400.0,0.00016986,2]
[380959561,1755912774546,-400.0,0.00016986,2]
[380959562,1755912774556,-560.98,0.00016986,2]
[380959563,1755912774565,-581.45,0.00016986,2]
[380959564,1755912774575,-485.12,0.00016986,2]
[380959565,1755912774584,-400.0,0.00016986,2]
[380959566,1755912774594,-607.66,0.00016986,2]
[380959567,1755912774603,-400.0,0.00016986,2]
[380959568,1755912774613,-483.72,0.00016986,2]
[380959569,1755912774623,-506.32,0.00016986,2]
[380959570,1755912774633,-657.0,0.00016986,2]
[380959571,1755912774643,-460.21,0.00016986,2]
[380959572,1755912774653,-664.59,0.00016986,2]
[380959573,1755912774663,-463.13,0.00016986,2]
[380959574,1755912774672,-518.18,0.00016986,2]
[380959575,1755912774681,-548.04,0.00016986,2]
[380959576,1755912774691,-623.23,0.00016986,2]
[380959577,1755912774700,-490.94,0.00016986,2]
[380959578,1755912774710,-400.0,0.00016986,2]
[380959579,1755912774720,-407.86,0.00016986,2]
[380959580,1755912774729,-538.71,0.00016986,2]
[380959581,1755912774738,-492.11,0.00016986,2]
[380959582,1755912774748,-585.32,0.00016986,2]
[380959583,1755912774757,-704.8,0.00016986,2]
[380959584,1755912774767,-419.51,0.00016986,2]
[380959585,1755912774778,-536.25,0.00016986,2]
[380959586,1755912774787,-400.0,0.00016986,2]
[380959587,1755912774796,-416.08,0.00016986,2]
[380959588,1755912774806,-685.75,0.00016986,2]
[380959589,1755912774815,-552.15,0.00016986,2]
[380959590,1755912774825,-400.0,0.00016986,2]
[380959591,1755912774835,-400.0,0.00016986,2]
[380959592,1755912774845,-1265.94,0.00016986,2]
[380959593,1755912774854,-475.58,0.00016986,2]
[380959594,1755912774863,-400.0,0.00016986,2]
[380959595,1755912774872,-400.0,0.00016986,2]
[380959596,1755912774882,-433.85,0.00016986,2]
[380959597,1755912774892,-400.0,0.00016986,2]
[380959598,1755912774902,-400.0,0.00016986,2]
[380959599,1755912774912,-400.0,0.00016986,2]
[380959600,1755912774921,-400.0,0.00016986,2]
[380959601,1755912774931,-428.36,0.00016986,2]
[380959602,1755912774941,-543.91,0.00016986,2]
[380959603,1755912774951,-400.0,0.00016986,2]
[380959604,1755912774961,-427.61,0.00016986,2]
[380959605,1755912774970,-763.66,0.00016986,2]
[380959606,1755912774979,-400.0,0.00016986,2]
[380959607,1755912774989,-400.0,0.00016986,2]
[380959608,1755912774998,-400.0,0.00016986,2]
[380959609,1755912775009,-400.0,0.00016986,2]
[380959610,1755912775018,-482.08,0.00016986,2]
[380959611,1755912775027,-552.38,0.00016986,2]
[380959612,1755912775037,-793.95,0.00016986,2]
[380959613,1755912775046,-400.0,0.00016986,2]
[380959614,1755912775055,-400.0,0.00016986,2]
[380959615,1755912775065,-400.0,0.00016986,2]
[380959616,1755912775074,-476.99,0.00016986,2]
[380959617,1755912775083,-400.0,0.00016986,2]
[380959618,1755912775093,-402.73,0.00016986,2]
[380959619,1755912775103,-400.0,0.00016986,2]
[380959620,1755912775113,-772.08,0.00016986,2]
[380959621,1755912775122,-607.86,0.00016986,2]
[380959622,1755912775132,-400.0,0.00016986,2]
[380959623,1755912775143,-577.68,0.00016986,2]
[380959624,1755912775152,-446.17,0.00016986,2]
[380959625,1755912775162,-499.75,0.00016986,2]
[380959626,1755912775171,-543.86,0.00016986,2]
[380959627,1755912775181,-707.33,0.00016986,2]
[380959628,1755912775190,-156.17461,0.00016986,2]
[380959629,1755912775200,-475.34,0.00016986,2]
[380959630,1755912775210,-602.1,0.00016986,2]
[380959631,1755912775219,-496.62,0.00016986,2]
[380959632,1755912775229,-480.32,0.00016986,2]
[380959633,1755912775239,-752.86,0.00016986,2]
[380959634,1755912775249,-400.0,0.00016986,2]
[380959635,1755912775258,-400.0,0.00016986,2]
[380959636,1755912775268,-400.0,0.00016986,2]
[380959637,1755912775277,-633.62,0.00016986,2]
[380959638,1755912775288,-400.0,0.00016986,2]
[380959639,1755912775298,-400.0,0.00016986,2]
[380959640,1755912775308,-226.56007186,0.00016986,2]
[380959641,1755912775318,-400.0,0.00016986,2]
[380959642,1755912775327,-560.58,0.00016986,2]
[380959643,1755912775338,-400.0,0.00016986,2]
[380959644,1755912775347,-614.22,0.00016986,2]
[380959645,1755912775357,-428.79,0.00016986,2]
[380959646,1755912775367,-416.01,0.00016986,2]
[380959647,1755912775377,-400.0,0.00016986,2]
[380959648,1755912775387,-358.68029909,0.00016986,2]
[380959649,1755912775399,-400.0,0.00016986,2]
[380959650,1755912775409,-425.3,0.00016986,2]
[380959651,1755912775420,-508.68,0.00016986,2]
[380959652,1755912775432,-400.0,0.00016986,2]
[380959653,1755912775443,-193.17723,0.00016986,2]
[380959654,1755912775453,-470.91,0.00016986,2]
[380959655,1755912775463,-418.5,0.00016986,2]
[380959656,1755912775473,-535.36,0.00016986,2]
[380959657,1755912775483,-400.0,0.00016986,2]
[380959658,1755912775493,-400.0,0.00016986,2]
[380959659,1755912775503,-747.8,0.00016986,2]
[380959660,1755912775513,-400.0,0.00016986,2]
[380959661,1755912775523,-433.94,0.00016986,2]
[380959662,1755912775533,-400.0,0.00016986,2]
[380959663,1755912775542,-400.0,0.00016986,2]
[380959664,1755912775551,-400.0,0.00016986,2]
[380959665,1755912775561,-472.48,0.00016986,2]
[380959666,1755912775571,-400.0,0.00016986,2]
[380959667,1755912775581,-400.0,0.00016986,2]
[380959668,1755912775591,-400.0,0.00016986,2]
[380959669,1755912775602,-855.010025,0.00016986,2]
[380959670,1755912775612,-400.0,0.00016986,2]
[380959671,1755912775622,-631.75,0.00016986,2]
[380959672,1755912775632,-314.47837858,0.00016986,2]
[380959673,1755912775642,-400.0,0.00016986,2]
[380959674,1755912775653,-479.25,0.00016986,2]
[380959675,1755912775665,-737.35,0.00016986,2]
[380959676,1755912775675,-473.06,0.00016986,2]
[380959677,1755912775685,-400.0,0.00016986,2]
[380959678,1755912775697,-400.0,0.00016986,2]
[380959679,1755912775707,-400.0,0.00016986,2]
[380959680,1755912775718,-464.53,0.00016986,2]
[380959681,1755912775728,-400.0,0.00016986,2]
[380959682,1755912775740,-451.38,0.00016986,2]
[380959683,1755912775749,-605.41,0.00016986,2]
[380959684,1755912775760,-763.68,0.00016986,2]
[380959685,1755912775769,-453.62639887,0.00016986,2]
[380959686,1755912775778,-400.0,0.00016986,2]
[380959687,1755912775788,-455.69,0.00016986,2]
[380959688,1755912775797,-400.0,0.00016986,2]
[380959689,1755912775807,-153.73405141,0.00016986,2]
[380959690,1755912775816,-437.52,0.00016986,2]
[380959691,1755912775826,-496.31,0.00016986,2]
[380959692,1755912775836,-400.0,0.00016986,2]
[380959693,1755912775846,-400.0,0.00016986,2]
[380959694,1755912775855,-517.63,0.00016986,2]
[380959695,1755912775865,-1076.1,0.00016986,2]
[380959696,1755912775875,-400.0,0.00016986,2]
[380959697,1755912775884,-531.82,0.00016986,2]
[380959698,1755912775894,-400.0,0.00016986,2]
[380959699,1755912775903,-400.0,0.00016986,2]
[380959700,1755912775913,-599.57,0.00016986,2]
[380959701,1755912775923,-538.24,0.00016986,2]
[380959702,1755912775933,-400.0,0.00016986,2]
[380959703,1755912775945,-578.64,0.00016986,2]
[380959704,1755912775955,-481.87,0.00016986,2]
[380959705,1755912775965,-876.45,0.00016986,2]
[380959706,1755912775974,-596.46,0.00016986,2]
[380959707,1755912775984,-400.0,0.00016986,2]
[380959708,1755912775993,-750.69,0.00016986,2]
[380959709,1755912776002,-400.0,0.00016986,2]
[380959710,1755912776016,-483.91,0.00016986,2]
[380959711,1755912776027,-429.94,0.00016986,2]
[380959712,1755912776037,-2560.03,0.00016986,2]
[380959713,1755912776047,-583.44,0.00016986,2]
[380959714,1755912776057,-400.0,0.00016986,2]
[380959715,1755912776067,-165.091098,0.00016986,2]
[380959716,1755912776076,-400.0,0.00016986,2]
[380959717,1755912776086,-412.65,0.00016986,2]
[380959718,1755912776096,-511.98,0.00016986,2]
[380959719,1755912776106,-400.0,0.00016986,2]
[380959720,1755912776116,-714.55,0.00016986,2]
[380959721,1755912776125,-466.47,0.00016986,2]
[380959722,1755912776135,-400.0,0.00016986,2]
[380959723,1755912776145,-789.4,0.00016986,2]
[380959724,1755912776154,-483.0,0.00016986,2]
[380959725,1755912776164,-638.96,0.00016986,2]
[380959726,1755912776173,-626.45,0.00016986,2]
[380959727,1755912776183,-411.07,0.00016986,2]
[380959728,1755912776193,-400.0,0.00016986,2]
[380959729,1755912776203,-459.86,0.00016986,2]
[380959730,1755912776213,-590.56,0.00016986,2]
[380959731,1755912776223,-7170.55,0.00016986,2]
[380959732,1755912776233,-366.93666168,0.00016986,2]
[380959733,1755912776242,-798.6,0.00016986,2]
[380959734,1755912776252,-489.74,0.00016986,2]
[380959735,1755912776264,-755.36,0.00016986,2]
[380959736,1755912776274,-568.83,0.00016986,2]
[380959737,1755912776283,-414.4,0.00016986,2]
[380959738,1755912776293,-556.35,0.00016986,2]
[380959739,1755912776608,-400.0,0.00016986,2]
[380959740,1755912776620,-2114.53,0.00016986,2]
[380959741,1755912776630,-522.88,0.00016986,2]
[380959742,1755912776640,-400.0,0.00016986,2]
[380959743,1755912776651,-400.0,0.00016986,2]
[380959744,1755912776660,-2594.59,0.00016986,2]
[380959745,1755912776671,-400.0,0.00016986,2]
[380959746,1755912776681,-446.5,0.00016986,2]
[380959747,1755912776691,-529.92,0.00016986,2]
[380959748,1755912776701,-705.67,0.00016986,2]
[380959749,1755912776711,-400.0,0.00016986,2]
[380959750,1755912776720,-896.87,0.00016986,2]
[380959751,1755912776730,-400.0,0.00016986,2]
[380959752,1755912776739,-1094.77,0.00016986,2]
[380959753,1755912776748,-741.74,0.00016986,2]
[380959754,1755912776758,-869.76,0.00016986,2]
[380959755,1755912776767,-400.0,0.00016986,2]
[380959756,1755912776777,-418.69,0.00016986,2]
[380959757,1755912776786,-437.77,0.00016986,2]
[380959758,1755912776796,-562.13,0.00016986,2]
[380959759,1755912776806,-541.27,0.00016986,2]
[380959760,1755912776815,-1048.91,0.00016986,2]
[380959761,1755912776825,-723.99,0.00016986,2]
[380959762,1755912776835,-400.0,0.00016986,2]
[380959763,1755912776844,-400.0,0.00016986,2]
[380959764,1755912776854,-400.0,0.00016986,2]
[380959765,1755912776864,-963.36,0.00016986,2]
[380959766,1755912776873,-685.08,0.00016986,2]
[380959767,1755912776883,-614.11,0.00016986,2]
[380959768,1755912776892,-4903.23,0.00016986,2]